bitfinex-derivatives/quotes_ETHF0:USTF0_20240928
["timestamp","ask_amount","ask_price","bid_price","bid_amount"]
[1727553832872,4.27025596,2679.0,2678.9,3.58099]
[1727553833370,1.34,2679.0,2678.9,3.58099]
[1727553833673,1.34,2679.0,2678.9,0.37319]
[1727553835071,1.7376,2679.0,2678.9,0.37319]
[1727553836973,4.66785596,2679.0,2678.9,0.37319]
[1727553841275,1.7376,2679.0,2678.9,0.37319]
[1727553842087,3.41835954,2679.1,2679.0,0.37318]
[1727553842288,2.93420319,2679.1,2679.0,7.31378]
[1727553842596,0.0345,2679.2,2679.1,0.37316]
[1727553842783,0.0345,2679.2,2679.1,5.81656]
[1727553842989,0.0345,2679.2,2679.1,11.81656]
[1727553844094,2.93420319,2679.5,2679.4,0.37312]
[1727553844795,2.93420319,2679.5,2679.4,1.14792]
[1727553846291,4.27420319,2679.6,2679.4,1.14792]
[1727553846798,4.27420319,2679.6,2679.5,0.3687]
[1727553847297,1.34,2679.6,2679.5,0.3687]
[1727553847798,4.27225685,2679.6,2679.5,0.3687]
[1727553848298,4.27225685,2679.6,2679.5,0.74181]
[1727553848497,1.34,2679.6,2679.5,0.74181]
[1727553849702,2.93225685,2679.7,2679.6,0.37309]
[1727553851294,7.88635685,2679.8,2679.7,0.37308]
[1727553853604,4.67855685,2679.8,2679.7,0.37308]
[1727553855003,3.33855685,2679.8,2679.7,0.37308]
[1727553855204,0.4063,2679.8,2679.7,0.37308]
[1727553855403,4.27225685,2680.0,2679.9,0.37305]
[1727553855703,3.41835954,2680.2,2679.9,0.37305]
[1727553855704,3.30735685,2680.2,2680.1,0.37302]
[1727553855898,0.3751,2680.2,2680.1,0.37302]
[1727553856306,3.30735685,2680.2,2680.1,0.37302]
[1727553857504,0.3751,2680.2,2680.1,0.37302]
[1727553857690,0.3751,2680.2,2680.0,1.1502]
[1727553857691,5.04505685,2680.3,2680.2,0.37301]
[1727553857891,4.64995685,2680.3,2680.2,0.37301]
[1727553859301,1.7177,2680.3,2680.2,0.37301]
[1727553865208,0.3777,2680.3,2680.2,0.37301]
[1727553885718,3.30995685,2680.3,2680.2,0.37301]
[1727553886525,0.3777,2680.3,2680.2,0.37301]
[1727553895526,3.79605954,2680.3,2680.2,0.37301]
[1727553897537,3.83055954,2680.3,2680.2,0.37301]
[1727553898529,0.4122,2680.3,2680.2,0.37301]
[1727553899535,3.83398978,2680.3,2680.2,0.37301]
[1727553899738,0.4122,2680.3,2680.2,0.37301]
[1727553900435,4.32889171,2680.3,2680.2,0.37301]
[1727553900933,1.7522,2680.3,2680.2,0.37301]
[1727553901137,5.66528937,2680.3,2680.2,0.37301]
[1727553901340,1.7522,2680.3,2680.2,0.37301]
[1727553901525,9.58495309,2680.3,2680.2,0.37301]
[1727553901836,5.17822248,2680.3,2680.2,0.37301]
[1727553903829,3.83822248,2680.3,2680.2,0.37301]
[1727553905728,0.4122,2680.3,2680.2,0.37301]
[1727553908138,3.83822248,2680.3,2680.2,0.37301]
[1727553912840,3.80372248,2680.3,2680.2,0.37301]
[1727553914647,8.87492248,2680.3,2679.8,0.7918]
[1727553914844,2.93703845,2680.0,2679.9,0.37305]
[1727553915240,4.08333845,2680.0,2679.9,0.37305]
[1727553915640,1.1463,2680.0,2679.9,0.37305]
[1727553916733,5.06175426,2680.0,2679.9,0.37305]
[1727553916935,1.1463,2680.0,2679.9,0.37305]
[1727553917349,5.06175426,2680.0,2679.9,0.37305]
[1727553917544,1.1463,2680.0,2679.9,0.37305]
[1727553919745,4.8775,2680.0,2679.9,0.37305]
[1727553919945,1.1463,2680.0,2679.9,0.37305]
[1727553931158,4.07817953,2680.0,2679.9,0.37305]
[1727553931760,4.11267953,2680.0,2679.9,0.37305]
[1727553932671,4.60132612,2680.0,2679.9,0.37305]
[1727553938067,4.97436612,2680.0,2679.9,0.37305]
[1727553938668,7.90391795,2680.0,2679.9,0.37305]
[1727553938873,4.48339183,2680.0,2679.9,0.37305]
[1727553940166,4.48339183,2680.0,2679.6,0.7174]
[1727553940167,0.37305,2679.9,2679.6,0.7174]
[1727553940375,0.37305,2679.9,2679.8,0.37306]
[1727553940570,4.64260183,2679.9,2679.8,0.37306]
[1727553941174,4.26955183,2679.9,2679.8,0.37306]
[1727553942771,2.96405183,2680.0,2679.9,0.37305]
[1727553942969,0.0345,2680.0,2679.9,0.37305]
[1727553943163,0.0345,2680.0,2679.9,5.03688]
[1727553943365,0.0345,2680.0,2679.9,6.37688]
[1727553943561,0.0345,2680.0,2679.9,7.17878]
[1727553944170,3.01655183,2680.3,2680.2,0.37301]
[1727553944370,3.42052612,2680.5,2680.3,0.37298]
[1727553944371,2.92955183,2680.5,2680.3,0.37298]
[1727553944571,2.92955183,2680.5,2680.4,1.13798]
[1727553944970,3.30251183,2680.6,2680.4,1.13798]
[1727553945678,0.37297,2680.5,2680.4,1.13798]
[1727553945977,1.34,2680.5,2680.4,1.13798]
[1727553946170,4.26955183,2680.5,2680.4,1.13798]
[1727553946475,1.34,2680.5,2680.4,1.13798]
[1727553947480,1.71297,2680.5,2680.4,1.13798]
[1727553949570,5.13033243,2680.5,2680.4,1.13798]
[1727553949770,4.75736243,2680.5,2680.4,1.13798]
[1727553949970,1.34,2680.5,2680.4,1.13798]
[1727553950170,1.71297,2680.5,2680.4,1.13798]
[1727553950576,5.1302336,2680.5,2680.4,1.13798]
[1727553950776,1.71297,2680.5,2680.4,1.13798]
[1727553951277,5.13015628,2680.5,2680.4,1.13798]
[1727553953276,1.71297,2680.5,2680.4,1.13798]
[1727553953680,4.64180992,2680.5,2680.4,1.13798]
[1727553956972,1.71297,2680.5,2680.4,1.13798]
[1727553958276,4.64180992,2680.5,2680.4,1.13798]
[1727553958477,1.71297,2680.5,2680.4,1.13798]
[1727553960178,4.64180992,2680.5,2680.4,1.13798]
[1727553960577,1.71297,2680.5,2680.4,1.13798]
[1727553960978,4.64180992,2680.5,2680.4,1.13798]
[1727553961179,1.71297,2680.5,2680.4,1.13798]
[1727553961782,2.10607,2680.5,2680.4,1.13798]
[1727553961988,5.52220125,2680.5,2680.4,1.13798]
[1727553962381,2.10607,2680.5,2680.4,1.13798]
[1727553962580,1.7331,2680.5,2680.4,1.13798]
[1727553962881,4.28841426,2680.6,2680.5,0.37297]
[1727553962882,3.41611324,2680.6,2680.5,0.37297]
[1727553963274,3.41611324,2680.7,2680.6,0.37295]
[1727553963781,3.41611324,2680.8,2680.7,0.37294]
[1727553963975,5.64855426,2681.0,2680.8,0.37292]
[1727553963976,3.41611324,2680.9,2680.8,0.37292]
[1727553964176,3.41611324,2680.9,2680.8,1.71292]
[1727553964382,3.41611324,2681.0,2680.9,0.37291]
[1727553964685,2.92746939,2681.1,2681.0,0.3729]
[1727553964886,2.92746939,2681.1,2681.0,0.7441]
[1727553965384,2.92746939,2681.2,2681.1,0.37288]
[1727553965584,3.29934616,2681.2,2681.0,0.3712]
[1727553965780,3.29934616,2681.2,2681.0,0.74409]
[1727553965781,2.92647616,2681.1,2681.0,0.74409]
[1727553967482,4.26647616,2681.2,2681.1,0.37288]
[1727553967685,2.92647616,2681.2,2681.1,0.37288]
[1727553968388,3.70133616,2681.3,2681.1,0.37288]
[1727553968779,0.77486,2681.3,2681.1,0.37288]
[1727553970279,0.402,2681.3,2681.2,0.37287]
[1727553970588,0.7643,2681.4,2681.3,0.37286]
[1727553970882,0.3681,2681.4,2681.3,0.37286]
[1727553972587,0.3681,2681.4,2681.1,1.34]
[1727553972588,0.74095,2681.4,2681.1,1.34]
[1727553972786,2.08095,2681.4,2681.0,0.3712]
[1727553972986,2.08095,2681.4,2681.2,0.37286]
[1727553973182,2.08095,2681.4,2681.3,0.37286]
[1727553974190,2.08095,2681.4,2681.2,0.37286]
[1727553975391,2.08095,2681.4,2681.3,0.37286]
[1727553977592,0.3681,2681.4,2681.3,0.37286]
[1727553978882,0.74094,2681.4,2681.3,0.37286]
[1727553983697,0.74094,2681.4,2681.1,1.7267]
[1727553983698,1.7081,2681.4,2681.1,0.3867]
[1727553983898,1.7081,2681.4,2681.1,0.75958]
[1727553983899,0.37287,2681.2,2681.1,0.75958]
[1727553984493,3.29933616,2681.3,2681.2,0.37287]
[1727553984689,0.37286,2681.3,2681.2,0.37287]
[1727553987208,0.37286,2681.3,2681.1,2.09957]
[1727553987502,0.37287,2681.2,2681.1,2.09957]
[1727553987804,0.78037,2681.2,2681.1,2.09957]
[1727553988106,0.78037,2681.2,2681.1,0.75957]
[1727553988304,4.11524616,2681.2,2681.1,0.75957]
[1727553989101,4.11524616,2681.2,2681.1,0.37287]
[1727553989309,3.74237616,2681.2,2681.1,0.37287]
[1727553991921,0.8159,2681.2,2681.1,0.37287]
[1727553999001,3.74237616,2681.2,2681.1,0.37287]
[1727553999710,3.74237616,2681.2,2681.1,0.75037]
[1727553999916,3.74237616,2681.2,2681.1,2.09037]
[1727554002909,2.92647616,2681.2,2681.1,11.81997]
[1727554003208,2.92647616,2681.3,2681.2,0.37287]
[1727554003414,2.92647616,2681.3,2681.2,5.83657]
[1727554004717,2.92647616,2681.3,2681.2,9.04437]
[1727554005414,3.41611324,2681.4,2681.3,0.37286]
[1727554005714,3.41611324,2681.4,2681.3,4.10246]
[1727554005908,3.41611324,2681.4,2681.3,0.37286]
[1727554006921,3.41611324,2681.4,2681.3,0.33836]
[1727554007118,0.373,2681.5,2681.4,0.37284]
[1727554007119,3.30388575,2681.5,2681.4,0.37284]
[1727554008621,3.78911324,2681.5,2681.4,0.37284]
[1727554009119,0.373,2681.5,2681.4,0.37284]
[1727554009419,3.78911324,2681.5,2681.4,0.37284]
[1727554013109,3.78911324,2681.5,2681.4,1.71284]
[1727554014223,4.28845426,2681.5,2681.4,1.71284]
[1727554020122,4.28845426,2681.5,2681.4,0.37284]
[1727554020316,1.30501,2681.3,2681.2,3.2078]
[1727554020516,0.37288,2681.1,2680.9,0.7209]
[1727554020721,1.71286,2681.3,2680.7,0.7961]
[1727554020722,2.1038,2681.0,2680.8,0.37292]
[1727554020920,3.79661122,2680.9,2680.8,0.37292]
[1727554022227,0.3731,2680.9,2680.8,0.37292]
[1727554036231,3.30727321,2680.9,2680.8,0.37292]
[1727554036429,3.30727321,2680.9,2680.8,0.33842]
[1727554041026,0.3731,2680.9,2680.8,0.33842]
[1727554041225,3.30727321,2680.9,2680.8,0.33842]
[1727554041420,0.3731,2680.9,2680.8,0.33842]
[1727554041623,3.30727321,2680.9,2680.8,0.33842]
[1727554041828,0.3731,2680.9,2680.8,0.33842]
[1727554042530,3.30727321,2680.9,2680.8,0.33842]
[1727554042933,3.30727321,2680.9,2680.8,0.73132]
[1727554043433,0.3731,2680.9,2680.8,0.73132]
[1727554043839,0.3731,2680.9,2680.8,0.76582]
[1727554044033,3.30727321,2680.9,2680.8,0.76582]
[1727554044222,0.3731,2680.9,2680.8,0.76582]
[1727554044627,0.3731,2680.9,2680.8,0.3929]
[1727554045027,0.3731,2680.9,2680.7,4.92074]
[1727554045831,0.3731,2680.9,2680.7,1.71294]
[1727554046231,0.3731,2680.9,2680.7,0.37294]
[1727554047125,0.3882,2680.8,2680.7,0.37294]
[1727554047828,5.4586,2680.8,2680.4,3.5558]
[1727554048035,5.4586,2680.8,2680.3,0.37299]
[1727554048036,1.34,2680.7,2680.3,0.3726]
[1727554048332,1.34,2680.5,2680.3,0.3726]
[1727554048524,0.3965,2680.4,2680.3,0.74559]
[1727554048725,0.3965,2680.4,2680.3,0.3726]
[1727554049735,0.3965,2680.4,2680.3,0.74559]
[1727554051630,0.3965,2680.4,2680.3,0.3726]
[1727554054029,0.3965,2680.4,2680.2,2.1095]
[1727554054333,0.3786,2680.3,2680.2,2.1095]
[1727554064752,0.3786,2680.3,2680.2,2.075]
[1727554068946,0.3786,2680.3,2680.2,0.735]
[1727554069146,0.3786,2680.3,2680.2,0.365]
[1727554077939,1.7365,2680.4,2680.2,0.365]
[1727554078147,1.7365,2680.4,2680.2,0.7694]
[1727554083261,1.7365,2680.4,2680.1,3.5917]
[1727554083450,1.7365,2680.4,2680.1,0.3839]
[1727554084562,2.10948,2680.4,2680.1,0.3839]
[1727554084752,2.10949,2680.4,2680.1,0.3839]
[1727554085349,5.04366321,2680.4,2680.1,0.3839]
[1727554085749,1.7365,2680.4,2680.1,0.3839]
[1727554086150,4.67067321,2680.4,2680.1,0.3839]
[1727554086346,5.04365321,2680.4,2680.1,0.3839]
[1727554086852,5.04365321,2680.4,2680.1,3.96471]
[1727554086853,0.3965,2680.4,2680.1,3.96471]
[1727554087052,0.3965,2680.4,2680.2,0.373]
[1727554088160,0.3965,2680.4,2680.1,3.96471]
[1727554088362,3.33067321,2680.4,2680.2,0.37301]
[1727554088663,0.3965,2680.4,2680.2,0.37301]
[1727554088851,3.33067321,2680.4,2680.2,0.37301]
[1727554089050,0.3965,2680.4,2680.2,0.37301]
[1727554089253,3.33067321,2680.4,2680.1,3.96471]
[1727554089562,2.93417321,2680.3,2680.2,0.37301]
[1727554089964,2.93417321,2680.3,2680.1,3.96471]
[1727554090354,2.93417321,2680.3,2680.1,3.5917]
[1727554090649,2.93417321,2680.3,2680.1,3.96472]
[1727554090854,2.93417321,2680.2,2680.1,3.96472]
[1727554092566,2.93417321,2680.2,2680.1,3.5917]
[1727554092956,2.93417321,2680.2,2680.1,3.96472]
[1727554093353,3.42351122,2680.3,2680.1,3.5578]
[1727554094551,2.93729536,2680.2,2680.1,3.5578]
[1727554094756,3.42351122,2680.3,2680.1,3.5578]
[1727554095462,2.93726273,2680.2,2680.1,3.5578]
[1727554096556,2.93726273,2680.3,2680.1,3.5578]
[1727554097055,3.31026273,2680.3,2680.1,3.5578]
[1727554097257,3.31026273,2680.3,2679.9,0.7858]
[1727554097258,3.71317273,2680.2,2679.9,0.7858]
[1727554097558,4.11957273,2680.2,2679.9,1.1644]
[1727554097756,3.74656273,2680.2,2679.9,1.53745]
[1727554097950,3.74656273,2680.2,2679.9,1.1644]
[1727554098957,3.74656273,2680.2,2679.9,1.53745]
[1727554099462,0.8093,2680.2,2679.9,1.53745]
[1727554099866,3.74656273,2680.2,2679.9,1.53745]
[1727554100363,0.8093,2680.2,2679.9,1.53745]
[1727554102254,3.74656273,2680.2,2679.9,1.53745]
[1727554102466,0.8093,2680.2,2679.9,1.53744]
[1727554102664,3.74656273,2680.2,2679.9,1.53744]
[1727554102862,3.74656273,2680.2,2680.0,0.37304]
[1727554102863,0.8093,2680.2,2680.0,0.37304]
[1727554103060,3.74656273,2680.2,2680.0,0.37304]
[1727554104671,2.93726273,2680.1,2680.0,0.37304]
[1727554108363,3.74656273,2680.2,2680.0,0.37304]
[1727554108769,2.93726273,2680.1,2680.0,0.37304]
[1727554111857,0.8093,2680.2,2680.0,0.37304]
[1727554111858,3.74656273,2680.2,2680.0,0.37304]
[1727554113467,3.74656273,2680.2,2679.9,4.74524]
[1727554117468,3.74656273,2680.2,2679.9,1.1644]
[1727554117776,2.93726273,2680.5,2680.3,0.37299]
[1727554117970,2.93726273,2680.5,2680.4,0.7568]
[1727554118165,0.3695,2680.6,2680.4,0.7568]
[1727554118166,3.30676273,2680.6,2680.4,0.7568]
[1727554120173,3.67972273,2680.6,2680.4,0.7568]
[1727554124075,3.30676273,2680.6,2680.4,0.7568]
[1727554125082,3.30676273,2680.6,2680.4,0.3789]
[1727554125288,3.30676273,2680.6,2680.5,0.37297]
[1727554125476,0.3695,2680.6,2680.5,1.71297]
[1727554125675,0.3695,2680.6,2680.5,2.11347]
[1727554126078,0.7654,2680.7,2680.6,0.37295]
[1727554127007,0.7654,2680.7,2680.5,2.11346]
[1727554127289,3.69995573,2680.7,2680.5,2.11346]
[1727554128483,3.69995573,2680.7,2680.5,5.32126]
[1727554129193,3.69995573,2680.7,2680.6,0.37295]
[1727554129684,3.69995573,2680.7,2680.5,5.32126]
[1727554130092,3.69995573,2680.7,2680.5,2.11346]
[1727554130983,3.69995573,2680.7,2680.6,0.37295]
[1727554131589,3.69995573,2680.7,2680.5,1.7405]
[1727554131590,3.69995573,2680.7,2680.5,2.11346]
[1727554132091,3.69995573,2680.7,2680.6,0.37295]
[1727554132495,3.32765573,2680.8,2680.7,0.37294]
[1727554132691,0.3931,2680.8,2680.7,3.95084]
[1727554132891,0.3931,2680.8,2680.7,4.31924]
[1727554134508,0.3931,2680.8,2680.7,3.94914]
[1727554135000,0.3931,2680.8,2680.7,3.58074]
[1727554140400,0.3931,2680.8,2680.7,0.37294]
[1727554140600,0.3931,2680.8,2680.7,3.58074]
[1727554141003,0.3931,2680.8,2680.7,0.37294]
[1727554141202,0.3931,2680.8,2680.7,3.58074]
[1727554142010,0.3931,2680.8,2680.7,0.37294]
[1727554142199,0.3931,2680.8,2680.7,3.58074]
[1727554142403,0.3931,2680.8,2680.7,0.37294]
[1727554142604,0.3931,2680.8,2680.7,3.58074]
[1727554144401,0.3931,2680.8,2680.7,0.37294]
[1727554145099,0.3931,2680.8,2680.7,3.58074]
[1727554146003,0.3931,2680.8,2680.7,0.37294]
[1727554146203,0.3931,2680.8,2680.7,3.58074]
[1727554146506,0.3931,2680.8,2680.7,0.37294]
[1727554146910,0.3931,2680.8,2680.7,3.58074]
[1727554148211,0.7981,2681.0,2680.9,0.37291]
[1727554166216,4.22161122,2681.0,2680.9,0.37291]
[1727554167328,3.42351122,2681.0,2680.9,0.37291]
[1727554167528,3.42351122,2681.0,2680.9,0.75271]
[1727554172046,0.77479,2681.1,2681.0,0.3729]
[1727554175246,4.19830122,2681.1,2681.0,0.3729]
[1727554178636,4.19830122,2681.1,2680.9,0.7527]
[1727554179043,3.91230192,2681.0,2680.9,0.7527]
[1727554187145,5.18152061,2681.1,2680.9,0.7527]
[1727554187146,8.60906758,2681.1,2680.9,0.7527]
[1727554187344,4.20233697,2681.1,2680.9,0.7527]
[1727554189745,3.82944697,2681.1,2681.0,0.3729]
[1727554189947,0.4019,2681.1,2681.0,0.3729]
[1727554190247,3.3396846,2681.1,2681.0,1.7129]
[1727554191945,3.3396846,2681.1,2681.0,1.34]
[1727554192645,3.3396846,2681.1,2681.0,1.7129]
[1727554193047,3.3396846,2681.1,2681.0,0.3729]
[1727554194153,0.4019,2681.1,2681.0,0.3729]
[1727554194349,3.82838401,2681.1,2681.0,0.3729]
[1727554194558,3.82838365,2681.1,2681.0,0.3729]
[1727554202155,0.4019,2681.1,2681.0,0.3729]
[1727554204255,0.4019,2681.1,2681.0,1.7129]
[1727554208463,0.4019,2681.1,2681.0,0.3729]
[1727554211154,0.4019,2681.1,2681.0,4.9207]
[1727554213957,0.4019,2681.1,2681.0,1.7129]
[1727554214160,0.4019,2681.1,2681.0,4.9207]
[1727554214464,0.4019,2681.1,2681.0,1.7129]
[1727554214665,0.4019,2681.1,2681.0,4.9207]
[1727554217157,3.82838365,2681.1,2681.0,4.9207]
[1727554219171,3.82838365,2681.1,2681.0,5.2975]
[1727554224181,0.4019,2681.1,2681.0,5.2975]
[1727554227481,0.4019,2681.1,2681.0,2.0897]
[1727554232389,3.82838365,2681.1,2681.0,2.0897]
[1727554235893,3.82838365,2681.1,2681.0,5.2975]
[1727554237286,3.82838365,2681.1,2681.0,2.0897]
[1727554237491,3.82838365,2681.1,2681.0,5.2975]
[1727554239294,0.4019,2681.1,2681.0,5.2975]
[1727554239494,0.4019,2681.1,2681.0,2.0897]
[1727554239690,0.4019,2681.1,2681.0,5.2975]
[1727554240596,0.4019,2681.1,2681.0,2.0897]
[1727554240896,0.4019,2681.1,2681.0,5.2975]
[1727554244195,0.4019,2681.1,2681.0,2.0897]
[1727554244396,0.4019,2681.1,2681.0,5.2975]
[1727554248999,0.4019,2681.1,2681.0,2.0897]
[1727554249200,0.4019,2681.1,2681.0,5.2975]
[1727554250510,0.4019,2681.1,2681.0,2.0897]
[1727554250903,0.4019,2681.1,2681.0,5.2975]
[1727554251605,0.4019,2681.1,2681.0,2.0897]
[1727554252006,0.4019,2681.1,2681.0,5.2975]
[1727554252698,0.4019,2681.1,2681.0,2.0897]
[1727554252901,0.4019,2681.1,2681.0,5.2975]
[1727554254198,0.4019,2681.1,2681.0,2.0897]
[1727554254598,3.82838365,2681.1,2681.0,5.2975]
[1727554255311,3.82838365,2681.1,2681.0,2.0897]
[1727554255610,3.82838365,2681.1,2681.0,5.2975]
[1727554256208,3.82838365,2681.1,2681.0,2.0897]
[1727554256512,3.82838365,2681.1,2681.0,5.2975]
[1727554256712,3.82838365,2681.1,2681.0,2.0897]
[1727554256912,3.82838365,2681.1,2681.0,5.2975]
[1727554260312,3.82838365,2681.1,2681.0,3.9575]
[1727554260510,9.27088365,2681.1,2680.7,3.2078]
[1727554260710,1.34,2680.8,2680.6,0.348]
[1727554260912,5.09703739,2680.7,2680.5,1.34]
[1727554261107,5.09703739,2680.7,2680.6,1.71295]
[1727554261108,5.09704244,2680.7,2680.6,1.71295]
[1727554261315,1.1788,2680.7,2680.6,1.71295]
[1727554261510,4.11734142,2680.7,2680.6,1.71295]
[1727554261712,4.11734142,2680.7,2680.5,1.71296]
[1727554262320,4.11734142,2680.7,2680.4,3.58077]
[1727554263318,4.49028142,2680.7,2680.4,3.2078]
[1727554263517,4.49028142,2680.7,2680.2,0.348]
[1727554263518,1.34,2680.6,2680.2,0.348]
[1727554263831,0.37301,2680.2,2680.1,3.2078]
[1727554264121,1.71301,2680.2,2680.1,3.2078]
[1727554264319,9.54965142,2680.2,2680.1,3.2078]
[1727554264518,6.61111,2680.2,2680.1,3.2078]
[1727554266015,18.4321,2680.2,2679.7,0.348]
[1727554266210,1.34,2679.8,2679.7,0.348]
[1727554266415,1.34,2679.8,2679.5,3.58089]
[1727554266416,1.34,2679.8,2679.6,0.37309]
[1727554266719,1.1761,2679.7,2679.6,0.37309]
[1727554267217,4.9081,2679.7,2679.6,0.37309]
[1727554269019,6.2481,2679.7,2679.3,0.348]
[1727554269221,6.2481,2679.7,2679.3,0.37312]
[1727554269222,1.34,2679.5,2679.3,0.37312]
[1727554269526,1.71313,2679.4,2679.2,3.2078]
[1727554269825,1.71313,2679.4,2679.2,3.58095]
[1727554270228,1.34,2679.4,2679.2,3.58095]
[1727554271516,1.71311,2679.5,2679.2,3.58095]
[1727554271921,1.71311,2679.5,2679.2,4.92095]
[1727554273127,1.71311,2679.5,2679.2,3.58095]
[1727554274920,1.9331,2679.7,2679.2,3.58095]
[1727554274921,2.5161,2679.7,2679.5,0.3731]
[1727554275122,2.5161,2679.7,2679.6,0.37309]
[1727554275424,1.1761,2679.7,2679.6,0.37309]
[1727554275624,0.7872,2679.7,2679.6,0.37309]
[1727554278827,2.1272,2679.7,2679.6,0.37309]
[1727554279726,0.7872,2679.7,2679.6,0.37309]
[1727554280124,0.383,2679.7,2679.6,0.37309]
[1727554280528,4.9417,2679.9,2679.5,1.34]
[1727554280529,4.9417,2679.9,2679.8,0.37306]
[1727554280832,5.31475,2679.9,2679.8,0.37306]
[1727554281031,5.31475,2679.9,2679.7,0.37307]
[1727554281628,0.37307,2679.8,2679.6,0.37308]
[1727554281826,1.71307,2679.8,2679.6,0.37308]
[1727554282228,1.71307,2679.8,2679.7,0.37308]
[1727554283033,1.34,2679.8,2679.7,0.37308]
[1727554284623,1.71306,2679.8,2679.7,0.37308]
[1727554296444,0.37306,2679.8,2679.7,0.37308]
[1727554298944,0.3684,2680.0,2679.4,5.48059]
[1727554299136,0.3684,2680.0,2679.9,0.37305]
[1727554299949,1.744,2680.2,2680.1,0.37302]
[1727554301347,1.34,2680.2,2680.1,0.37302]
[1727554301546,1.71301,2680.2,2680.1,0.37302]
[1727554307341,1.34,2680.2,2680.1,0.37302]
[1727554312354,1.34,2680.2,2679.9,0.37304]
[1727554312355,0.37302,2680.1,2679.9,0.37304]
[1727554312656,1.34,2680.0,2679.9,0.37305]
[1727554313250,1.7444,2680.0,2679.9,0.37305]
[1727554314544,2.1346,2680.0,2679.9,0.37305]
[1727554321859,2.5423,2680.0,2679.9,0.37305]
[1727554324571,1.2023,2680.0,2679.9,0.37305]
[1727554326866,2.93854142,2680.2,2680.1,0.37302]
[1727554327072,1.7402,2680.3,2680.2,0.37301]
[1727554327254,1.7402,2680.3,2679.9,0.93263]
[1727554327255,4.67874142,2680.3,2679.8,0.348]
[1727554327455,4.67874142,2680.3,2680.0,0.37303]
[1727554327456,3.31156142,2680.2,2680.0,0.37303]
[1727554327659,2.0947,2680.1,2680.0,0.37303]
[1727554329666,2.0947,2680.1,2679.7,3.9871]
[1727554329667,2.0947,2680.1,2679.9,0.37304]
[1727554329863,0.3977,2680.0,2679.9,0.37304]
[1727554342481,2.93854142,2680.2,2680.1,0.37302]
[1727554343073,2.93854142,2680.2,2680.1,0.74362]
[1727554343683,2.93854142,2680.2,2680.1,1.52842]
[1727554343982,5.17379832,2680.3,2680.2,0.37301]
[1727554344588,1.7455,2680.3,2680.2,0.37301]
[1727554345480,5.1726062,2680.3,2680.2,0.37301]
[1727554345782,1.7455,2680.3,2680.2,0.37301]
[1727554349175,5.66374244,2680.3,2680.2,0.37301]
[1727554349373,1.7455,2680.3,2680.2,0.37301]
[1727554350883,5.66374244,2680.3,2680.2,0.37301]
[1727554351588,1.7455,2680.3,2680.2,0.37301]
[1727554352087,5.66374244,2680.3,2680.2,0.37301]
[1727554352289,1.7455,2680.3,2680.2,0.37301]
[1727554352582,5.6626376,2680.3,2680.2,0.37301]
[1727554352782,1.7455,2680.3,2680.2,0.37301]
[1727554353685,5.66262959,2680.3,2680.2,0.37301]
[1727554354482,5.66259319,2680.3,2680.2,0.37301]
[1727554357591,1.7455,2680.3,2680.2,0.37301]
[1727554358493,5.66252487,2680.3,2680.2,0.37301]
[1727554359185,5.17293341,2680.3,2680.2,0.37301]
[1727554362185,5.54594341,2680.3,2680.0,3.2078]
[1727554362492,5.54594341,2680.3,2679.8,1.28066]
[1727554362493,4.65083171,2680.1,2679.9,0.37304]
[1727554362687,2.45454,2680.0,2679.9,0.37304]
[1727554362883,0.37305,2679.9,2679.7,3.2078]
[1727554363088,1.34,2679.8,2679.7,3.58088]
[1727554370795,1.34,2679.9,2679.8,0.37306]
[1727554374394,4.27781171,2679.9,2679.8,0.37306]
[1727554379193,1.34,2679.9,2679.8,0.37306]
[1727554381000,4.06691171,2680.0,2679.9,0.37305]
[1727554381201,4.66541171,2680.0,2679.9,0.37305]
[1727554381401,4.27781171,2680.0,2679.9,0.37305]
[1727554381701,2.93781171,2680.0,2679.9,0.37305]
[1727554381901,3.82603341,2680.2,2680.0,0.37304]
[1727554381902,2.93781171,2680.1,2680.0,0.37304]
[1727554382110,2.93781171,2680.1,2680.0,4.35804]
[1727554382408,1.7386,2680.2,2680.1,0.37302]
[1727554382409,0.3986,2680.2,2680.1,0.37302]
[1727554383799,1.7386,2680.2,2680.1,0.37302]
[1727554388902,1.7386,2680.2,2680.0,1.15023]
[1727554389106,1.7386,2680.2,2679.9,3.58084]
[1727554389107,0.37303,2680.1,2679.9,3.58084]
[1727554389309,1.34,2680.0,2679.9,3.58084]
[1727554389609,4.76743341,2680.0,2679.9,3.58084]
[1727554390008,4.76743341,2680.0,2679.9,3.2078]
[1727554392103,4.76743341,2680.0,2679.9,3.58085]
[1727554397313,4.27647813,2680.0,2679.9,3.58085]
[1727554397915,1.34,2680.0,2679.9,3.58085]
[1727554403720,1.34,2680.0,2679.9,0.37305]
[1727554407315,4.27647813,2680.1,2680.0,0.37304]
[1727554408220,1.34,2680.1,2680.0,0.37304]
[1727554414024,1.34,2680.1,2680.0,3.58084]
[1727554417531,1.34,2680.1,2680.0,0.37304]
[1727554421430,4.27650005,2680.1,2680.0,0.37304]
[1727554427544,1.34,2680.1,2680.0,0.37304]
[1727554434450,4.27740518,2680.1,2680.0,0.37304]
[1727554435347,3.33600518,2680.2,2680.1,0.37302]
[1727554440556,3.70901518,2680.2,2680.1,0.37302]
[1727554442556,4.19904341,2680.2,2680.1,0.37302]
[1727554443755,3.82603341,2680.2,2680.1,0.37302]
[1727554444252,0.3986,2680.2,2680.1,0.37302]
[1727554444649,3.82603341,2680.2,2680.1,0.37302]
[1727554447061,4.19904341,2680.2,2680.1,0.37302]
[1727554449457,7.13697699,2680.2,2680.1,0.37302]
[1727554449661,3.70954358,2680.2,2680.1,0.37302]
[1727554453361,0.77161,2680.2,2680.1,0.37302]